fUST/lending_fUST_20241012
["ID","MTS","AMOUNT","RATE_DAILY","PERIOD"]
[340167960,1728739747998,-500.0,0.0003931,15]
[340167961,1728739748021,-500.0,0.0003931,15]
[340167962,1728739748041,-1434.977955,0.00039311,2]
[340167963,1728739748063,-560.0,0.00039851,30]
[340167964,1728739748083,-1434.977955,0.00039996,2]
[340167965,1728739748103,-21026.46646382,0.0004,120]
[340167966,1728739748124,-306.265,0.00040297,57]
[340167967,1728739748144,-162.51263877,0.0004059,2]
[340167968,1728739748165,-180.4850268,0.00041096,2]
[340167969,1728739748184,-165.29,0.00041479,30]
[340167970,1728739748204,-2322.08,0.00041489,10]
[340167971,1728739748224,-3976.24,0.00041489,10]
[340167972,1728739748246,-826.49,0.00041491,30]
[340167973,1728739748266,-3313.53,0.00041491,10]
[340167974,1728739748286,-180.72,0.00041498,7]
[340167975,1728739748306,-1813.37707709,0.00041521,14]
[340167976,1728739748326,-783.0,0.00041544,5]
[340167977,1728739748345,-500.0,0.00041782,2]
[340167978,1728739748365,-500.0,0.00042162,10]
[340167979,1728739748384,-243.0,0.00042229,2]
[340167980,1728739748405,-550.69115665,0.00042277,10]
[340167981,1728739748426,-500.0,0.0004234,10]
[340167982,1728739748446,-502.27822382,0.0004234,10]
[340167983,1728739748466,-500.0,0.00042779,7]
[340167984,1728739748486,-500.0,0.00042779,5]
[340167985,1728739748506,-1004.2567336,0.00043152,2]
[340167986,1728739748527,-338.0174129,0.00043239,14]
[340167987,1728739748548,-375.33574275,0.00043361,7]
[340167988,1728739748570,-62179.57941903,0.00043637,6]
[340167989,1728739748600,-11937.07678208,0.00043637,6]
[340167990,1728739749314,-11223.49405019,0.00043637,6]
[340167991,1728739749339,-17221.87611761,0.00043637,6]
[340167992,1728739751143,-9583.25585,0.00043637,6]
[340167993,1728739759096,-2761.28,0.00041489,10]
[340167994,1728739759120,-2878.86119543,0.00043637,6]
[340167995,1728739759147,-73851.77835396,0.00043637,6]
[340167996,1728739759168,-501.58103436,0.0004371,10]
[340167997,1728739759189,-500.0,0.00043836,31]
[340167998,1728739759212,-500.0,0.00043836,31]
[340167999,1728739759236,-500.0,0.00043836,31]
[340168000,1728739759261,-500.0,0.00043836,31]
[340168001,1728739759284,-500.0,0.00043836,31]
[340168002,1728739759308,-500.0,0.00043836,31]
[340168003,1728739759330,-500.0,0.00043836,31]
[340168004,1728739759350,-500.0,0.00043836,31]
[340168005,1728739759372,-500.0,0.00043836,31]
[340168006,1728739759393,-500.0,0.00043836,31]
[340168007,1728739759414,-500.0,0.00043836,31]
[340168008,1728739759435,-500.0,0.00043836,31]
[340168009,1728739759456,-500.0,0.00043836,31]
[340168010,1728739759477,-343.25095834,0.00043836,31]
[340168011,1728739759499,-500.0,0.00043836,31]
[340168012,1728739759520,-500.0,0.00043836,31]
[340168013,1728739759541,-500.0,0.00043836,31]
[340168014,1728739759562,-500.0,0.00043836,31]
[340168015,1728739759582,-500.0,0.00043836,31]
[340168016,1728739759602,-500.0,0.00043836,31]
[340168017,1728739759623,-500.0,0.00043836,31]
[340168018,1728739759643,-500.0,0.00043836,31]
[340168019,1728739759665,-500.0,0.00043836,31]
[340168020,1728739759686,-500.0,0.00043836,31]
[340168021,1728739759707,-500.0,0.00043836,31]
[340168022,1728739759728,-500.0,0.00043836,31]
[340168023,1728739759748,-500.0,0.00043836,31]
[340168024,1728739759770,-515.89258625,0.00043836,31]
[340168025,1728739759793,-783.0,0.00043836,30]
[340168026,1728739759814,-292.6156304,0.00044049,2]
[340168027,1728739759837,-789.52682743,0.00044149,7]
[340168028,1728739759857,-500.0,0.00044149,5]
[340168029,1728739759878,-1097.0,0.00044488,5]
[340168034,1728739765057,2301.07,0.00041489,10]
[340168035,1728739767185,-292.61563039,0.00044807,2]
[340168036,1728739767204,-1530.93104825,0.00045,120]
[340168037,1728739767224,-500.0,0.00045311,10]
[340168038,1728739767245,-292.61563039,0.00045565,2]
[340168039,1728739767266,-13824.72506239,0.00046,60]
[340168040,1728739767287,-292.61563039,0.00046322,2]
[340168041,1728739767308,-292.61563039,0.0004708,2]
[340168042,1728739767327,-1700.20294038,0.000471,2]
[340168043,1728739767347,-16491.89116379,0.0004719,61]
[340168044,1728739767370,-3834.48182735,0.0004719,26]
[340168045,1728739767394,-17024.89393939,0.0004719,7]
[340168046,1728739768102,-5654.39789472,0.0004719,7]
[340168047,1728739772216,-122396.01068272,0.0004719,7]
[340168048,1728739775772,1917.55,0.00041489,10]
[340168052,1728739786750,1597.96,0.00041489,10]
[340168053,1728739797452,1331.64,0.00041489,10]
[340168054,1728739800740,550.0,0.00041498,30]
[340168055,1728739803080,550.0,0.00041498,5]
[340168056,1728739803702,5621.15079142,0.00041399,28]
[340168057,1728739803939,770.0,0.00044196,5]
[340168058,1728739808611,1109.7,0.00041489,10]
[340168060,1728739819624,924.75,0.00041489,10]
[340168061,1728739825779,225.34494193,0.00041489,30]
[340168062,1728739830058,770.62,0.00041489,10]
[340168081,1728739831860,-1117.97325547,0.00041499,2]
[340168082,1728739833863,500.0,0.00041498,31]
[340168083,1728739833890,500.0,0.00041498,31]
[340168084,1728739833917,500.0,0.00041498,31]
[340168085,1728739833957,473.61348684,0.00041498,31]
[340168086,1728739833987,500.0,0.00041498,31]
[340168087,1728739834014,521.35301058,0.00041498,31]
[340168088,1728739834045,370.02176821,0.00041498,31]
[340168105,1728739839036,-62.03564594,0.00041499,2]
[340168113,1728739839933,-53362.54665467,0.00041499,2]
[340168114,1728739839944,-12727.82211403,0.00041499,120]
[340168115,1728739839959,-8135.29001811,0.00041499,120]
[340168116,1728739839970,-70167.42351041,0.00041499,20]
[340168117,1728739840298,1738.24,0.000415,30]
[340168118,1728739840899,642.18,0.00041489,10]
[340168146,1728739843423,-249.3004615,0.00041499,20]
[340168151,1728739860746,550.0,0.00041498,30]
[340168152,1728739863083,535.15,0.00041489,10]
[340168153,1728739864481,550.0,0.00041498,5]
[340168154,1728739865237,770.0,0.00044196,5]
[340168155,1728739866607,4908.46572929,0.00041497,2]
[340168156,1728739867261,578.49,0.000415,30]
[340168157,1728739873857,445.96,0.00041489,10]
[340168158,1728739884486,371.64,0.00041489,10]
[340168159,1728739889975,236.428197,0.00034737,2]
[340168160,1728739890179,236.428197,0.00034833,2]
[340168161,1728739890394,236.428197,0.00034928,2]
[340168162,1728739890602,236.428197,0.00035023,2]
[340168163,1728739890835,236.428197,0.00035118,2]
[340168164,1728739891048,236.428197,0.00035214,2]
[340168165,1728739891262,236.428197,0.00035309,2]
[340168166,1728739891476,236.428197,0.00035404,2]
[340168167,1728739891682,236.428197,0.00035499,2]
[340168168,1728739891890,236.428197,0.00035595,2]
[340168169,1728739892113,236.428197,0.0003569,2]
[340168170,1728739892363,236.428197,0.00035785,2]
[340168171,1728739892614,236.428197,0.0003588,2]
[340168172,1728739892851,236.428197,0.00035976,2]
[340168173,1728739893076,236.428197,0.00036071,2]
[340168174,1728739893645,236.428197,0.00036166,2]
[340168175,1728739893886,236.428197,0.00036262,2]
[340168176,1728739894101,236.428197,0.00036357,2]
[340168177,1728739894331,236.428197,0.00036452,2]
[340168178,1728739894558,236.428197,0.00036547,2]
[340168179,1728739894894,309.7,0.00041489,10]
[340168180,1728739905807,258.08,0.00041489,10]
[340168182,1728739916664,215.07,0.00041493,10]
[340168183,1728739920807,550.0,0.00041498,30]
[340168184,1728739922450,550.0,0.00041498,5]
[340168185,1728739923211,770.0,0.00044196,5]
[340168186,1728739927379,179.22,0.00041493,10]
[340168187,1728739936340,1535.94,0.00041499,2]
[340168188,1728739936615,1535.94,0.00041499,2]
[340168189,1728739936923,1535.94,0.00041499,2]
[340168190,1728739937210,1535.94,0.00041499,2]
[340168191,1728739937471,1535.94,0.00041499,2]
[340168192,1728739937790,1535.94,0.00041499,2]
[340168193,1728739938083,1535.94,0.00041499,2]
[340168194,1728739938381,1535.94,0.00041499,2]
[340168195,1728739938482,229.51,0.00041493,10]
[340168196,1728739938645,1535.94,0.00041499,2]
[340168197,1728739938949,1535.94,0.00041499,2]
[340168203,1728740749151,-166.666666,0.00030593,2]
[340168204,1728740749174,-315.572844,0.00031013,2]
[340168205,1728740749196,-710.7468691,0.00031489,2]
[340168206,1728740749219,-315.572844,0.00031698,2]
[340168207,1728740749240,-121.4674899,0.0003216,2]
[340168208,1728740813133,-128.5325101,0.0003216,2]
[340168209,1728740813156,-29.54609786,0.00032383,2]
[340168210,1728740827095,-286.02674614,0.00032383,2]
[340168211,1728740827124,-176.18028038,0.00032435,2]
[340168212,1728740831116,-73.81971962,0.00032435,2]
[340168213,1728740831142,-250.0,0.00032524,2]
[340168214,1728740831168,-250.0,0.00032613,2]
[340168215,1728740831190,-165.5868826,0.00032702,2]
[340168218,1728740835168,-84.4131174,0.00032702,2]
[340168219,1728740835193,-115.30312816,0.00032791,2]
[340168220,1728740835227,-134.69687184,0.00032791,2]
[340168221,1728740835251,-250.0,0.0003288,2]
[340168222,1728740835277,-757.0860015,0.00032882,2]
[340168223,1728740835309,-360.73874037,0.00032953,2]
[340168224,1728740835333,-400.0,0.00032953,2]
[340168225,1728740835368,-400.0,0.00032953,2]
[340168226,1728740835396,-348.0,0.00032954,2]
[340168227,1728740835422,-539.75445804,0.00032954,2]
[340168228,1728740842190,-4546.99452913,0.00032954,2]
[340168229,1728740849105,-1812.37792728,0.00032954,2]
[340168231,1728740947128,-1781.5820994,0.00032443,2]
[340168232,1728740947152,-400.0,0.00032953,2]
[340168233,1728740947176,-400.0,0.00032953,2]
[340168234,1728740947199,-18000.87308555,0.00032954,2]
[340168235,1728740947221,-1040.59464185,0.00033002,2]
[340168236,1728740947244,-250.0,0.00033013,2]
[340168237,1728740947267,-159.50479,0.00033102,2]
[340168238,1728740947291,-250.0,0.00033103,2]
[340168239,1728740947313,-159.50479,0.00033114,2]
[340168240,1728740947337,-159.50479,0.00033127,2]
[340168241,1728740947361,-159.50479,0.0003314,2]
[340168242,1728740947386,-159.50479,0.00033153,2]
[340168243,1728740947409,-159.50479,0.00033165,2]
[340168244,1728740947436,-159.50479,0.00033178,2]
[340168245,1728740947459,-159.50479,0.00033191,2]
[340168246,1728740947482,-250.0,0.00033194,2]
[340168247,1728740947506,-159.50479,0.00033203,2]
[340168248,1728740947532,-159.50479,0.00033216,2]
[340168249,1728740947554,-159.50479,0.00033229,2]
[340168250,1728740947579,-159.50479,0.00033242,2]
[340168251,1728740947602,-159.50479,0.00033254,2]
[340168252,1728740947624,-159.50479,0.00033267,2]
[340168253,1728740947650,-250.0,0.00033284,2]
[340168254,1728740947673,-250.0,0.00033375,2]
[340168255,1728740947700,-250.0,0.00033466,2]
[340168256,1728740947727,-250.0,0.00033556,2]
[340168257,1728740947754,-250.0,0.00033647,2]
[340168258,1728740947779,-250.0,0.00033737,2]
[340168259,1728740947802,-250.0,0.00033828,2]
[340168260,1728740947824,-250.0,0.00033918,2]
[340168261,1728740947846,-263.053039,0.00033969,2]
[340168262,1728740947872,-150.0,0.00034,2]
[340168263,1728740947895,-250.0,0.00034009,2]
[340168264,1728740947920,-250.0,0.00034099,2]
[340168265,1728740947945,-250.0,0.0003419,2]
[340168266,1728740947968,-169.134197,0.00034224,2]
[340168267,1728740947991,-250.0,0.0003428,2]
[340168268,1728740948015,-250.0,0.00034371,2]
[340168269,1728740948038,-250.0,0.00034462,2]
[340168270,1728740948061,-250.0,0.00034552,2]
[340168271,1728740948084,-250.0,0.00034643,2]
[340168272,1728740948109,-250.0,0.00034733,2]
[340168273,1728740948134,-166.666666,0.00034764,2]
[340168274,1728740948158,-279.483,0.00035021,40]
[340168275,1728740948182,-560.0,0.00035408,2]
[340168276,1728740948207,-560.0,0.00036249,2]
[340168277,1728740948235,-783.0,0.00038046,2]
[340168278,1728740948260,-5274.98022353,0.00038142,2]
[340168279,1728740948284,-1008.1970004,0.00038241,2]
[340168280,1728740948308,-500.0,0.00038242,15]
[340168281,1728740948330,-500.0,0.00038242,15]
[340168282,1728740948351,-500.0,0.00038242,15]
[340168283,1728740948375,-472.2410507,0.00038242,15]
[340168284,1728740948402,-500.0,0.00038242,15]
[340168285,1728740948429,-500.0,0.00038242,15]
[340168286,1728740948452,-500.0,0.00038242,15]
[340168287,1728740948477,-500.0,0.00038242,15]
[340168288,1728740948499,-500.0,0.00038242,15]
[340168289,1728740948522,-500.0,0.00038242,15]
[340168290,1728740948544,-500.0,0.00038242,15]
[340168291,1728740948566,-500.0,0.00038242,15]
[340168292,1728740948589,-500.0,0.00038242,15]
[340168293,1728740948610,-500.0,0.00038242,15]
[340168294,1728740948632,-500.0,0.00038242,15]
[340168295,1728740948653,-500.0,0.00038242,15]
[340168296,1728740948675,-500.0,0.00038242,15]
[340168297,1728740948803,-500.0,0.00038242,15]
[340168298,1728740948827,-500.0,0.00038242,15]
[340168299,1728740948849,-188.05194745,0.00038242,15]
[340168300,1728740948871,-500.0,0.00038242,15]
[340168301,1728740948893,-500.0,0.00038242,15]
[340168302,1728740948914,-500.0,0.00038242,15]
[340168303,1728740948940,-500.0,0.00038242,15]
[340168304,1728740948964,-500.0,0.00038242,15]
[340168305,1728740948988,-500.0,0.00038242,15]
[340168306,1728740949011,-467.68325622,0.00038821,5]
[340168307,1728740949033,-783.0,0.00039874,30]
[340168308,1728740949056,-1097.0,0.0004088,5]
[340168309,1728740949078,-541.84728774,0.00041377,2]
[340168310,1728740949103,-541.84728771,0.00041379,2]
[340168311,1728740949126,-541.84728771,0.00041382,2]
[340168312,1728740949152,-541.84728771,0.00041384,2]
[340168313,1728740949175,-541.84728771,0.00041386,2]
[340168314,1728740949204,-1530.18264627,0.00041399,2]
[340168315,1728740949232,-1287.43121746,0.00041399,2]
[340168316,1728740949257,-606.44,0.00041467,30]
[340168317,1728740949282,-505.36,0.00041467,30]
[340168318,1728740949306,-421.14,0.00041467,30]
[340168319,1728740949332,-350.95,0.00041467,30]
[340168320,1728740949355,-3759.9,0.00041467,10]
[340168321,1728740949381,-292.46,0.00041467,30]
[340168322,1728740949407,-500.0,0.00041473,7]
[340168323,1728740949432,-412.70528963,0.00041476,31]
[340168324,1728740949455,-500.0,0.00041476,31]
[340168325,1728740949481,-484.55164313,0.00041476,31]
[340168326,1728740949504,-286.92159398,0.00041476,31]
[340168327,1728740949530,-14218.1166288,0.00041477,6]
[340168328,1728740949553,-2687.59617735,0.00041477,6]
[340168329,1728740951099,-3959.92,0.00041467,10]
[340168330,1728740951124,-20363.47832561,0.00041477,6]
[340168331,1728740952161,-40080.91024,0.00041477,6]
[340168332,1728740954106,-243.71,0.00041467,30]
[340168333,1728740954132,-25369.79471934,0.00041477,6]
[340168334,1728740955095,-23658.75722,0.00041477,6]
[340168335,1728740962117,-3299.93,0.00041467,10]
[340168336,1728740962144,-126188.36724191,0.00041477,6]
[340168337,1728740965156,-203.09,0.00041467,30]
[340168338,1728740965179,-1171.15714893,0.00041477,6]
[340168339,1728740967143,-153915.87069286,0.00041477,6]
[340168340,1728740967170,-1047.92,0.00041477,30]
[340168341,1728740967195,-873.27,0.00041477,30]
[340168342,1728740967220,-727.72,0.00041477,30]
[340168343,1728740967245,-151.0,0.00041478,7]
[340168344,1728740967273,-7109.0583144,0.00041479,6]
[340168345,1728740967308,-87094.52423431,0.00041479,6]
[340168346,1728741000978,185.7365742,0.00032687,30]
[340168363,1728741032441,716.5142,0.0003785,30]
[340168366,1728741038312,-550.0,0.00040999,30]
[340168367,1728741038323,-550.0,0.00040999,5]
[340168368,1728741038334,-274.69345008,0.00040999,31]
[340168369,1728741038343,-500.0,0.00040999,31]
[340168370,1728741038355,-500.0,0.00040999,31]
[340168371,1728741038366,-500.0,0.00040999,31]
[340168372,1728741038376,-632.00577194,0.00040999,31]
[340168373,1728741038386,-610.25104295,0.00040999,31]
[340168374,1728741038395,-28469.93833708,0.00041,120]
[340168375,1728741038521,162.0,0.000288,2]
[340168386,1728741040187,-23673.76166292,0.00041,120]
[340168389,1728741040200,-322.76543525,0.00041,30]
[340168391,1728741040211,-169.54753914,0.00041377,2]
[340168393,1728741040221,-169.54753912,0.00041382,2]
[340168395,1728741040233,-169.54753912,0.00041387,2]
[340168397,1728741040245,-169.25,0.00041477,30]
[340168399,1728741040254,-846.25,0.00041477,30]
[340168402,1728741040264,-1326.17,0.00041477,10]
[340168404,1728741040274,-2528.92,0.00041477,10]
[340168406,1728741040285,-959.65622218,0.00041479,6]
[340168425,1728741040454,-10304.80248491,0.00041479,6]
[340168427,1728741040467,-288.89370274,0.00041486,31]
[340168429,1728741040477,-550.84511579,0.00041486,31]
[340168431,1728741040486,-339.18615019,0.00041486,31]
[340168433,1728741040496,-40372.90532729,0.00041487,120]
[340168435,1728741040510,-144393.08229722,0.00041487,120]
[340168472,1728741044355,-1730.57193802,0.00041487,120]
[340168473,1728741044425,-17.56428977,0.00041487,120]
[340168478,1728741084725,743.02739299,0.00036661,2]
[340168482,1728741603482,500.0,0.0001,2]
[340168483,1728741603873,500.0,0.0001,2]
[340168484,1728741604241,500.0,0.0001,2]
[340168485,1728741604666,157.51435139,0.0001,2]
[340168486,1728741605181,6981.66692571,0.00029,2]
[340168487,1728741616182,10000.0,0.00028,2]
[340168489,1728741932114,-150.0,0.00029,2]
[340168490,1728741932139,-252.0806662,0.00032111,2]
[340168491,1728741950119,-896.6971688,0.00032111,2]
[340168492,1728741950142,-1613.34109787,0.00033551,2]
[340168494,1728742029146,-855.9815823,0.00033023,2]
[340168495,1728742029170,-411.12261613,0.00033551,2]
[340168496,1728742029190,-169.897683,0.00033655,120]
[340168497,1728742029213,-174.260104,0.00034192,2]
[340168498,1728742029235,-2024.463714,0.00034236,2]
[340168499,1728742029256,-174.260104,0.00034363,2]
[340168500,1728742029278,-3021.65793363,0.0003437,2]
[340168501,1728742037118,-164.42893096,0.0003437,2]
[340168502,1728742041095,-4654.94370097,0.0003326,2]
[340168503,1728742045159,-250.0,0.00033205,2]
[340168504,1728742045182,-301.67815201,0.0003326,2]
[340168505,1728742051111,-1536.0741464,0.00032877,63]
[340168506,1728742051134,-2791.31853522,0.0003326,2]
[340168507,1728742051159,-250.0,0.00033296,2]
[340168508,1728742051185,-250.0,0.00033387,2]
[340168509,1728742051210,-250.0,0.00033478,2]
[340168510,1728742051233,-250.0,0.00033569,2]
[340168511,1728742051257,-250.0,0.0003366,2]
[340168512,1728742051281,-250.0,0.00033751,2]
[340168513,1728742051304,-250.0,0.00033842,2]
[340168514,1728742051328,-250.0,0.00033933,2]
[340168515,1728742051352,-250.0,0.00034025,2]
[340168516,1728742051376,-250.0,0.00034116,2]
[340168517,1728742051400,-250.0,0.00034207,2]
[340168518,1728742051560,-250.0,0.00034298,2]
[340168519,1728742051586,-4222.67796769,0.0003437,2]
[340168520,1728742051609,-250.0,0.00034389,2]
[340168521,1728742051631,-1616.77070981,0.00034468,2]
[340168522,1728742051655,-400.0,0.00034469,2]
[340168523,1728742051679,-400.0,0.00034469,2]
[340168524,1728742051701,-267.0,0.0003447,2]
[340168525,1728742051724,-24900.0,0.0003447,2]
[340168526,1728742051746,-508.65596046,0.0003447,7]
[340168527,1728742051771,-250.0,0.0003448,2]
[340168528,1728742051792,-250.0,0.00034559,2]
[340168529,1728742051816,-250.0,0.00034571,2]
[340168530,1728742051839,-607.555166,0.00034625,2]
[340168531,1728742051863,-250.0,0.00034662,2]
[340168532,1728742051886,-250.0,0.00034753,2]
[340168533,1728742051910,-250.0,0.00034844,2]
[340168534,1728742051936,-2024.463714,0.00034921,2]
[340168535,1728742051969,-250.0,0.00034935,2]
[340168536,1728742051993,-500.0,0.0003562,5]
[340168537,1728742052018,-636.87239713,0.00035794,15]
[340168538,1728742052045,-500.0,0.00035794,15]
[340168539,1728742052073,-500.0,0.00035794,15]
[340168540,1728742052099,-209.20708881,0.00035794,15]
[340168541,1728742052125,-500.0,0.00035794,15]
[340168542,1728742052151,-500.0,0.00035794,15]
[340168543,1728742052178,-500.0,0.00035794,15]
[340168544,1728742052202,-500.0,0.00035794,15]
[340168545,1728742052224,-500.0,0.00035794,15]
[340168546,1728742052247,-500.0,0.00035794,15]
[340168547,1728742052271,-379.18003866,0.00035794,15]
[340168548,1728742052298,-500.0,0.00035794,15]
[340168549,1728742052324,-500.0,0.00035794,15]
[340168550,1728742052347,-500.0,0.00035794,15]
[340168551,1728742052372,-500.0,0.00035794,15]
[340168552,1728742052400,-500.0,0.00035794,15]
[340168553,1728742052425,-500.0,0.00035794,15]
[340168554,1728742052450,-500.0,0.00035794,15]
[340168555,1728742052474,-500.0,0.00035794,15]
[340168556,1728742052499,-500.0,0.00035794,15]
[340168557,1728742052524,-500.0,0.00035794,15]
[340168558,1728742052552,-500.0,0.00035794,15]
[340168559,1728742052576,-500.0,0.00035794,15]
[340168560,1728742052603,-500.0,0.00035794,15]
[340168561,1728742052627,-500.0,0.00035794,15]
[340168562,1728742052651,-500.0,0.00035794,15]
[340168563,1728742052675,-500.0,0.00035794,15]
[340168564,1728742052698,-219.67276733,0.00035794,15]
[340168565,1728742052720,-500.0,0.00035794,15]
[340168566,1728742052744,-499.99999999,0.00035794,15]
[340168567,1728742052766,-3000.0,0.00035877,2]
[340168568,1728742052788,-169.909089,0.00035957,2]
[340168569,1728742052809,-500.0,0.0003615,2]
[340168570,1728742052832,-380.0,0.0003617,2]
[340168571,1728742052857,-257.212,0.00036651,46]
[340168572,1728742052880,-503.2254506,0.000367,5]
[340168573,1728742052904,-560.0,0.00036979,2]
[340168574,1728742052931,-1000.0,0.0003699,5]
[340168575,1728742052954,-774.28839755,0.0003752,2]
[340168576,1728742053111,-490.42375205,0.00037847,5]
[340168578,1728742147107,-3000.0,0.0003653,2]
[340168579,1728742147131,-12.10499223,0.00037847,5]
[340168580,1728742147155,-502.54167999,0.00037847,5]
[340168581,1728742147181,-400.0,0.00038991,5]
[340168582,1728742147205,-400.0,0.00038992,30]
[340168583,1728742147228,-1525.33343341,0.00038993,5]
[340168584,1728742147254,-185.49,0.00039,120]
[340168585,1728742147277,-7408.76483227,0.00039396,2]
[340168586,1728742147299,-6714.86574162,0.0004007,2]
[340168587,1728742147320,-6714.86574162,0.00040433,2]
[340168588,1728742147342,-209.7712198,0.00040466,2]
[340168589,1728742147367,-6714.86574162,0.00040552,2]
[340168590,1728742147388,-243.49185191,0.00040679,5]
[340168591,1728742147412,-209.77121977,0.00040693,2]
[340168592,1728742147436,-500.83348103,0.00040762,5]
[340168593,1728742147460,-6736.05,0.00040852,10]
[340168594,1728742147483,-202.22559191,0.00040861,31]
[340168595,1728742147506,-283.43574924,0.00040861,31]
[340168596,1728742147530,-385.59158105,0.00040861,31]
[340168597,1728742147554,-264.35333763,0.00040861,31]
[340168598,1728742147577,-500.0,0.00040861,31]
[340168599,1728742147600,-191.07475193,0.00040861,31]
[340168600,1728742147623,-511.0251043,0.00040861,31]
[340168601,1728742147645,-500.0,0.00040861,31]
[340168602,1728742147668,-499.99999999,0.00040861,31]
[340168603,1728742147691,-3914.41184483,0.00040862,6]
[340168604,1728742147713,-13395.83999254,0.00040862,6]
[340168605,1728742151092,-8151.35210874,0.00040862,6]
[340168606,1728742153090,-80234.09338872,0.00040862,6]
[340168607,1728742153115,-215.0,0.00040862,3]
[340168608,1728742153138,-645.04,0.00040862,3]
[340168609,1728742153160,-6714.86574162,0.00040912,2]
[340168610,1728742153180,-209.77121977,0.0004092,2]
[340168611,1728742153201,-150.0,0.00041135,2]
[340168612,1728742153221,-209.77121977,0.00041147,2]
[340168613,1728742153243,-6714.86574166,0.00041288,2]
[340168614,1728742153264,-209.77121977,0.00041374,2]
[340168615,1728742153285,-1377.16438167,0.00041374,2]
[340168616,1728742153308,-150.112233,0.000414,8]
[340168617,1728742153331,-1266.65305402,0.00041467,6]
[340168618,1728742157197,-6562.17063564,0.00041467,6]
[340168619,1728742157221,-45902.90673072,0.00041467,6]
[340168620,1728742160111,-2691.28058952,0.00041457,10]
[340168621,1728742162097,-2922.08941048,0.00041457,10]
[340168622,1728742162120,-51670.85780952,0.00041467,6]
[340168623,1728742170113,-3665.89121195,0.00041457,10]
[340168624,1728742171109,-1011.91878805,0.00041457,10]
[340168625,1728742171136,-1536.11315511,0.00041467,6]
[340168626,1728742172194,-29789.51718039,0.00041467,6]
[340168627,1728742173108,-7226.97121873,0.00041467,6]
[340168628,1728742178753,389.6,0.00025,10]
[340168631,1728742197115,164.462599,0.00035222,2]
[340168632,1728742197574,164.462599,0.00035258,2]
[340168633,1728742197769,164.462599,0.00035293,2]
[340168634,1728742197967,164.462599,0.00035328,2]
[340168635,1728742198213,164.462599,0.00035363,2]
[340168636,1728742198425,164.462599,0.00035399,2]
[340168649,1728742232467,-550.0,0.00041459,5]
[340168650,1728742232477,-550.0,0.00041466,30]
[340168651,1728742232486,-2043.74332367,0.00041467,6]
[340168653,1728742238703,-1879.91,0.0004146,10]
[340168654,1728742238713,-430.0,0.0004146,30]
[340168655,1728742238722,-167.89167826,0.00041466,31]
[340168656,1728742238731,-65392.46156186,0.00041467,6]
[340168657,1728742238741,-339.10397364,0.00041467,30]
[340168658,1728742238751,-198.40502447,0.00041469,31]
[340168659,1728742238761,-269.91410674,0.00041469,31]
[340168660,1728742238771,-36633.63276627,0.0004147,20]
[340168661,1728742238868,-98950.49178756,0.0004147,20]
[340168667,1728742240334,-169699.35838391,0.0004147,20]
[340168669,1728742241202,2753.66830925,0.00036271,2]
[340168729,1728742243481,-12888.92641655,0.00036271,2]
[340168736,1728742243551,-9257.4052742,0.00036271,2]
[340168738,1728742243560,-5974.02317954,0.00041367,28]
[340168740,1728742243571,-293.78490004,0.00041373,2]
[340168742,1728742243581,-9641.88476995,0.0004147,20]
[340168759,1728742246322,-3584.86,0.0004146,10]
[340168760,1728742246331,-4800.14572359,0.0004147,20]
[340168772,1728743141153,-240.7865116,0.00032,2]